[Event "Irish New Year Events-IM2 2020"]
[Site "Dublin"]
[Date "2020.01.04"]
[Round "4.13"]
[White "Alienkin, Aleksander"]
[Black "Kanyamarala, Trisha"]
[Result "1/2-1/2"]
[ECO "D39"]
[WhiteElo "2382"]
[BlackElo "2195"]
[Annotator "ChessBase"]
[PlyCount "37"]
[EventDate "2020.01.02"]
[EventType "tourn"]
[EventCountry "IRL"]
[SourceTitle "playchess.com"]
[Source "ChessBase"]
[SourceQuality "1"]
[TimeControl "5400+30"]

1. d4 {[%emt 0:06:12]} Nf6 {[%emt 0:00:00]} 2. Nf3 {[%emt 0:04:59]} d5 {[%emt 0:00:18]} 3. c4 {[%emt 0:00:34]} e6 {[%emt 0:00:14]} 4. Bg5 {[%emt 0:06:33]} Bb4+ {[%emt 0:04:22]} 5. Nc3 {[%emt 0:05:32]} dxc4 {[%emt 0:05:26]} 6. e4 {[%emt 0:04:44]} h6 {[%emt 0:01:25]} 7. Bxf6 {[%emt 0:01:08]} Qxf6 {[%emt 0:00:32]} 8. Bxc4 {[%emt 0:02:09]} c5 {[%emt 0:05:56]} 9. e5 {[%emt 0:03:01]} Qd8 {[%emt 0:05:04]} 10. d5 {[%emt 0:07:12]} exd5 {[%emt 0:03:18]} 11. Bxd5 {[%emt 0:01:03]} O-O {[%emt 0:02:37]} 12. O-O {[%emt 0:00:39]} Qe7 {[%emt 0:06:01]} 13. Nb5 {[%emt 0:08:52]} Nc6 {[%emt 0:04:11]} 14. Bxc6 {[%emt 0:12:08]} bxc6 {[%emt 0:00:10]} 15. Qd6 {[%emt 0:00:14]} Qb7 {[%emt 0:04:32]} 16. Nc3 {[%emt 0:00:17]} Bf5 {[%emt 0:03:54]} 17. Rfd1 {[%emt 0:05:13]} c4 {[%emt 0:18:41]} 18. Qd4 {[%emt 0:03:26]} Bd3 {[%emt 0:01:59]} 19. Ne1 {[%emt 0:05:50]} 1/2-1/2

[Event "Irish New Year Events-IM2 2020"]
[Site "Dublin"]
[Date "2020.01.04"]
[Round "4.14"]
[White "Han, Yichen"]
[Black "Abdulla, Murad"]
[Result "0-1"]
[ECO "A43"]
[WhiteElo "2257"]
[BlackElo "2257"]
[Annotator "ChessBase"]
[PlyCount "80"]
[EventDate "2020.01.02"]
[EventType "tourn"]
[EventCountry "IRL"]
[SourceTitle "playchess.com"]
[Source "ChessBase"]
[SourceQuality "1"]
[TimeControl "5400+30"]

1. d4 {[%emt 0:00:00]} Nf6 {[%emt 0:10:07]} 2. Nf3 {[%emt 0:00:00]} c5 {[%emt 0:00:03]} 3. d5 {[%emt 0:00:31]} b5 {[%emt 0:02:18]} 4. Bg5 {[%emt 0:00:28]} Qb6 {[%emt 0:00:13]} 5. Bxf6 {[%emt 0:01:10]} Qxf6 {[%emt 0:00:05]} 6. c3 {[%emt 0:00:13]} g6 {[%emt 0:00:20]} 7. e4 {[%emt 0:00:34]} Qb6 {[%emt 0:00:19]} 8. Qc2 {[%emt 0:01:50]} Bg7 {[%emt 0:00:07]} 9. Nbd2 {[%emt 0:01:38]} O-O {[%emt 0:00:45]} 10. a4 {[%emt 0:01:28]} b4 {[%emt 0:00:15]} 11. Nc4 {[%emt 0:00:53]} Qc7 {[%emt 0:01:57]} 12. Bd3 {[%emt 0:00:38]} d6 {[%emt 0:00:58]} 13. O-O {[%emt 0:00:22]} Nd7 {[%emt 0:00:51]} 14. a5 {[%emt 0:02:13]} Rb8 {[%emt 0:02:19]} 15. Rfc1 {[%emt 0:04:15]} e6 {[%emt 0:12:13]} 16. Ne3 {[%emt 0:12:50]} Nf6 {[%emt 0:01:30]} 17. Bc4 {[%emt 0:05:04]} e5 {[%emt 0:14:20]} 18. Bd3 {[%emt 0:05:01]} Nh5 {[%emt 0:02:01]} 19. g3 {[%emt 0:02:18]} Bh6 {[%emt 0:01:25]} 20. Qe2 {[%emt 0:06:07]} Ng7 {[%emt 0:03:08]} 21. cxb4 {[%emt 0:08:55]} Rxb4 {[%emt 0:00:29]} 22. Rc4 {[%emt 0:00:09]} Rb8 {[%emt 0:05:09]} 23. Nh4 {[%emt 0:07:26]} f5 {[%emt 0:27:01]} 24. Rc2 {[%emt 0:02:56]} f4 {[%emt 0:04:23]} 25. Neg2 {[%emt 0:09:08]} Rf7 {[%emt 0:02:51]} 26. gxf4 {[%emt 0:03:55]} Bxf4 {[%emt 0:03:27]} 27. Nxf4 {[%emt 0:00:15]} Rxf4 {[%emt 0:00:06]} 28. Ng2 {[%emt 0:00:11]} Rf6 {[%emt 0:00:19]} 29. Ra3 {[%emt 0:02:44]} Bh3 {[%emt 0:01:34]} 30. Bc4 {[%emt 0:01:35]} Bxg2 {[%emt 0:00:35]} 31. Kxg2 {[%emt 0:00:02]} Nh5 {[%emt 0:00:12]} 32. Kg1 {[%emt 0:02:14]} Qd7 {[%emt 0:01:01]} 33. h3 {[%emt 0:00:35]} Rbf8 {[%emt 0:00:37]} 34. Qg4 {[%emt 0:01:44]} Qd8 {[%emt 0:00:40]} 35. Be2 {[%emt 0:01:40]} Rxf2 {[%emt 0:01:20]} 36. Rcc3 {[%emt 0:02:04]} Kh8 {[%emt 0:00:44]} 37. Rf3 {[%emt 0:04:29]} Nf6 {[%emt 0:01:19]} 38. Qh4 {[%emt 0:01:45]} Rxe2 {[%emt 0:00:29]} 39. Rab3 {[%emt 0:01:07]} Rxe4 {[%emt 0:00:52]} 40. Qh6 {[%emt 0:00:08]} Rb4 {[%emt 0:00:31]} 0-1

[Event "Irish New Year Events-IM2 2020"]
[Site "Dublin"]
[Date "2020.01.04"]
[Round "4.15"]
[White "Daly, Colm"]
[Black "Carroll, Peter"]
[Result "1-0"]
[ECO "B90"]
[WhiteElo "2238"]
[BlackElo "2087"]
[Annotator "ChessBase"]
[PlyCount "65"]
[EventDate "2020.01.02"]
[EventType "tourn"]
[EventCountry "IRL"]
[SourceTitle "playchess.com"]
[Source "ChessBase"]
[SourceQuality "1"]
[TimeControl "5400+30"]

1. e4 {[%emt 0:08:50]} c5 {[%emt 0:00:00]} 2. Nf3 {[%emt 0:00:05]} d6 {[%emt 0:00:00]} 3. d4 {[%emt 0:00:08]} cxd4 {[%emt 0:00:00]} 4. Nxd4 {[%emt 0:00:05]} Nf6 {[%emt 0:00:00]} 5. Nc3 {[%emt 0:00:05]} a6 {[%emt 0:00:00]} 6. a4 {[%emt 0:00:26]} e5 {[%emt 0:00:00]} 7. Nf3 {[%emt 0:00:08]} Be7 {[%emt 0:01:52]} 8. Bg5 {[%emt 0:00:49]} Be6 {[%emt 0:00:59]} 9. Bxf6 {[%emt 0:00:49]} Bxf6 {[%emt 0:10:08]} 10. Nd5 {[%emt 0:02:08]} Nd7 {[%emt 0:02:59]} 11. Bc4 {[%emt 0:00:17]} O-O {[%emt 0:01:04]} 12. O-O {[%emt 0:00:39]} Rc8 {[%emt 0:01:09]} 13. Qd3 {[%emt 0:16:20]} Nc5 {[%emt 0:17:04]} 14. Qe2 {[%emt 0:00:17]} Bxd5 {[%emt 0:01:15]} 15. Bxd5 {[%emt 0:00:09]} Qc7 {[%emt 0:00:24]} 16. c3 {[%emt 0:01:34]} Ne6 {[%emt 0:04:37]} 17. g3 {[%emt 0:00:18]} Kh8 {[%emt 0:05:29]} 18. Rfd1 {[%emt 0:00:57]} Ng5 {[%emt 0:01:58]} 19. Rd3 {[%emt 0:02:41]} Be7 {[%emt 0:02:03]} 20. Nxg5 {[%emt 0:01:01]} Bxg5 {[%emt 0:00:02]} 21. a5 {[%emt 0:00:51]} g6 {[%emt 0:02:13]} 22. c4 {[%emt 0:13:33]} f5 {[%emt 0:07:15]} 23. exf5 {[%emt 0:12:24]} Rxf5 {[%emt 0:00:42]} 24. Be6 {[%emt 0:01:42]} Rcf8 {[%emt 0:01:28]} 25. Bxf5 {[%emt 0:00:19]} Rxf5 {[%emt 0:00:13]} 26. Rf3 {[%emt 0:02:23]} Qf7 {[%emt 0:00:54]} 27. Rxf5 {[%emt 0:00:18]} gxf5 {[%emt 0:00:07]} 28. Rd1 {[%emt 0:00:18]} Be7 {[%emt 0:00:15]} 29. c5 {[%emt 0:00:24]} Qe6 {[%emt 0:00:37]} 30. cxd6 {[%emt 0:00:12]} Bxd6 {[%emt 0:00:06]} 31. Qd2 {[%emt 0:00:24]} Bc7 {[%emt 0:00:36]} 32. b4 {[%emt 0:00:13]} b6 {[%emt 0:00:26]} 33. Qd7 {[%emt 0:35:43]} 1-0

[Event "Irish New Year Events-IM2 2020"]
[Site "Dublin"]
[Date "2020.01.04"]
[Round "5.11"]
[White "Carroll, Peter"]
[Black "Baburin, Alexander"]
[Result "0-1"]
[ECO "D00"]
[WhiteElo "2087"]
[BlackElo "2419"]
[Annotator "NA"]
[PlyCount "48"]
[EventDate "2020.01.02"]
[EventType "tourn"]
[EventCountry "IRL"]
[SourceTitle "playchess.com"]
[Source "ChessBase"]
[SourceQuality "1"]
[TimeControl "5400+30"]

1. d4 {[%emt 0:00:00]} d5 {[%emt 0:03:42]} 2. Nc3 {[%emt 0:00:00]} Bf5 {[%emt 0:01:49]} 3. f3 {[%emt 0:00:08]} e6 {[%emt 0:06:35]} 4. Bf4 {[%emt 0:00:11]} a6 {[%emt 0:08:15]} 5. g4 {[%emt 0:02:18]} Bg6 {[%emt 0:05:22]} 6. h4 {[%emt 0:00:45]} h5 {[%emt 0:00:55]} 7. g5 {[%emt 0:00:06]} c5 {[%emt 0:00:39]} 8. e3 {[%emt 0:00:10]} Nc6 {[%emt 0:00:13]} 9. Bd3 {[%emt 0:00:28]} cxd4 {[%emt 0:16:55]} 10. exd4 {[%emt 0:01:10]} Bxd3 {[%emt 0:00:20]} 11. Qxd3 {[%emt 0:00:10]} Nge7 {[%emt 0:00:07]} 12. Nge2 {[%emt 0:00:58]} Nf5 {[%emt 0:00:29]} 13. O-O-O {[%emt 0:02:31]} g6 {[%emt 0:02:55]} 14. Be5 {[%emt 0:12:10]} Nxe5 {[%emt 0:02:44]} 15. dxe5 {[%emt 0:00:06]} Bc5 {[%emt 0:00:31]} 16. Rh2 {[%emt 0:02:45]} O-O {[%emt 0:00:37]} 17. Kb1 {[%emt 0:01:54]} Rc8 {[%emt 0:08:46]} 18. f4 {[%emt 0:12:34]} Bb4 {[%emt 0:05:04]} 19. a3 {[%emt 0:04:02]} Bxc3 {[%emt 0:01:37]} 20. Nxc3 {[%emt 0:00:08]} Qa5 {[%emt 0:00:32]} 21. Ne2 {[%emt 0:01:15]} Rc4 {[%emt 0:01:20]} 22. Qd2 {[%emt 0:04:56]} Qb6 {[%emt 0:01:55]} 23. Rh3 {[%emt 0:03:23]} Rfc8 {[%emt 0:01:32]} 24. Rc1 {[%emt 0:02:23]} Qf2 {[%emt 0:01:18]} 0-1

[Event "Irish New Year Events-IM2 2020"]
[Site "Dublin"]
[Date "2020.01.04"]
[Round "5.12"]
[White "Abdulla, Murad"]
[Black "Daly, Colm"]
[Result "1-0"]
[ECO "C11"]
[WhiteElo "2257"]
[BlackElo "2238"]
[Annotator "ChessBase"]
[PlyCount "107"]
[EventDate "2020.01.02"]
[EventType "tourn"]
[EventCountry "IRL"]
[SourceTitle "playchess.com"]
[Source "ChessBase"]
[SourceQuality "1"]
[TimeControl "5400+30"]

1. e4 {[%emt 0:00:00]} e6 {[%emt 0:06:21]} 2. d4 {[%emt 0:01:37]} d5 {[%emt 0:00:07]} 3. Nc3 {[%emt 0:00:22]} Nf6 {[%emt 0:00:20]} 4. e5 {[%emt 0:00:11]} Nfd7 {[%emt 0:00:06]} 5. f4 {[%emt 0:00:13]} c5 {[%emt 0:00:02]} 6. Nf3 {[%emt 0:00:07]} Nc6 {[%emt 0:00:06]} 7. Be3 {[%emt 0:00:10]} cxd4 {[%emt 0:00:07]} 8. Nxd4 {[%emt 0:00:05]} Bc5 {[%emt 0:00:06]} 9. Qd2 {[%emt 0:00:08]} a6 {[%emt 0:00:06]} 10. O-O-O {[%emt 0:00:28]} O-O {[%emt 0:00:49]} 11. Kb1 {[%emt 0:03:54]} Bxd4 {[%emt 0:12:02]} 12. Bxd4 {[%emt 0:00:09]} b5 {[%emt 0:00:05]} 13. Be3 {[%emt 0:12:19]} b4 {[%emt 0:01:46]} 14. Na4 {[%emt 0:15:45]} a5 {[%emt 0:00:25]} 15. Bd3 {[%emt 0:17:11]} Ba6 {[%emt 0:02:31]} 16. Qe2 {[%emt 0:00:19]} Qc8 {[%emt 0:05:11]} 17. Rhf1 {[%emt 0:04:45]} Bxd3 {[%emt 0:00:34]} 18. Rxd3 {[%emt 0:02:11]} Ne7 {[%emt 0:01:42]} 19. g4 {[%emt 0:02:09]} Qc6 {[%emt 0:06:39]} 20. b3 {[%emt 0:00:10]} Rac8 {[%emt 0:00:41]} 21. Bd4 {[%emt 0:03:59]} Rc7 {[%emt 0:00:28]} 22. f5 {[%emt 0:02:33]} Rfc8 {[%emt 0:02:25]} 23. Rd2 {[%emt 0:10:00]} Rb8 {[%emt 0:07:54]} 24. Qe3 {[%emt 0:07:25]} Kh8 {[%emt 0:19:38]} 25. Rf3 {[%emt 0:06:00]} Rg8 {[%emt 0:01:33]} 26. Qg5 {[%emt 0:06:14]} Nf8 {[%emt 0:16:48]} 27. Qf4 {[%emt 0:01:01]} Nd7 {[%emt 0:04:44]} 28. Rh3 {[%emt 0:00:28]} g6 {[%emt 0:03:52]} 29. f6 {[%emt 0:01:18]} g5 {[%emt 0:01:18]} 30. Qe3 {[%emt 0:00:20]} Ng6 {[%emt 0:01:24]} 31. Qxg5 {[%emt 0:01:07]} Ngf8 {[%emt 0:00:29]} 32. Qe3 {[%emt 0:01:20]} Rg6 {[%emt 0:02:19]} 33. Rg3 {[%emt 0:00:35]} Qb5 {[%emt 0:01:27]} 34. Rd3 {[%emt 0:01:03]} Rc8 {[%emt 0:01:06]} 35. h4 {[%emt 0:00:32]} h6 {[%emt 0:00:20]} 36. Qd2 {[%emt 0:01:13]} Nh7 {[%emt 0:00:19]} 37. Rg1 {[%emt 0:00:15]} Rcg8 {[%emt 0:00:07]} 38. Rdg3 {[%emt 0:00:11]} Qb8 {[%emt 0:00:03]} 39. Qe3 {[%emt 0:00:20]} Qb5 {[%emt 0:01:19]} 40. Nb2 {[%emt 0:00:24]} Rc8 {[%emt 0:01:07]} 41. Qd2 {[%emt 0:01:10]} Nc5 {[%emt 0:00:26]} 42. Bxc5 {[%emt 0:00:40]} Qxc5 {[%emt 0:00:03]} 43. Nd3 {[%emt 0:00:23]} Qd4 {[%emt 0:00:15]} 44. Qf2 {[%emt 0:00:26]} Qxf2 {[%emt 0:01:47]} 45. Nxf2 {[%emt 0:00:02]} Rgg8 {[%emt 0:00:11]} 46. Nd3 {[%emt 0:00:19]} Nf8 {[%emt 0:00:22]} 47. g5 {[%emt 0:00:02]} hxg5 {[%emt 0:01:16]} 48. hxg5 {[%emt 0:00:10]} Kh7 {[%emt 0:00:12]} 49. Nf4 {[%emt 0:00:31]} Rh8 {[%emt 0:00:39]} 50. g6+ {[%emt 0:00:21]} fxg6 {[%emt 0:00:43]} 51. Nxg6 {[%emt 0:00:07]} Nxg6 {[%emt 0:00:21]} 52. Rh1+ {[%emt 0:00:05]} Kg8 {[%emt 0:00:44]} 53. Rxg6+ {[%emt 0:00:04]} Kf7 {[%emt 0:00:12]} 54. Rg7+ {[%emt 0:00:03]} 1-0

[Event "Irish New Year Events-IM2 2020"]
[Site "Dublin"]
[Date "2020.01.04"]
[Round "5.13"]
[White "Kanyamarala, Trisha"]
[Black "Han, Yichen"]
[Result "1-0"]
[ECO "D10"]
[WhiteElo "2195"]
[BlackElo "2257"]
[Annotator "NA"]
[PlyCount "57"]
[EventDate "2020.01.02"]
[EventType "tourn"]
[EventCountry "IRL"]
[SourceTitle "playchess.com"]
[Source "ChessBase"]
[SourceQuality "1"]
[TimeControl "5400+30"]

1. d4 {[%emt 0:00:00]} d5 {[%emt 0:06:36]} 2. c4 {[%emt 0:00:10]} c6 {[%emt 0:00:08]} 3. cxd5 {[%emt 0:00:25]} cxd5 {[%emt 0:00:09]} 4. Nc3 {[%emt 0:01:03]} Nf6 {[%emt 0:00:17]} 5. Bf4 {[%emt 0:00:21]} Nc6 {[%emt 0:00:13]} 6. e3 {[%emt 0:00:30]} Ne4 {[%emt 0:00:53]} 7. Nge2 {[%emt 0:00:39]} Nxc3 {[%emt 0:04:01]} 8. Nxc3 {[%emt 0:00:30]} e6 {[%emt 0:00:31]} 9. Bd3 {[%emt 0:02:11]} Bd6 {[%emt 0:01:38]} 10. Qg4 {[%emt 0:03:29]} Kf8 {[%emt 0:21:36]} 11. Qg3 {[%emt 0:05:39]} Bxf4 {[%emt 0:00:19]} 12. Qxf4 {[%emt 0:00:11]} Qf6 {[%emt 0:00:28]} 13. Qg3 {[%emt 0:03:53]} g6 {[%emt 0:01:34]} 14. O-O {[%emt 0:02:28]} Kg7 {[%emt 0:01:43]} 15. Rac1 {[%emt 0:01:13]} Bd7 {[%emt 0:07:11]} 16. Rfd1 {[%emt 0:02:28]} Rac8 {[%emt 0:01:53]} 17. e4 {[%emt 0:07:06]} Nb4 {[%emt 0:09:23]} 18. Be2 {[%emt 0:03:23]} dxe4 {[%emt 0:01:56]} 19. Qd6 {[%emt 0:01:10]} e3 {[%emt 0:05:46]} 20. fxe3 {[%emt 0:03:59]} Bc6 {[%emt 0:00:24]} 21. Qxb4 {[%emt 0:00:54]} Qg5 {[%emt 0:00:06]} 22. d5 {[%emt 0:02:22]} exd5 {[%emt 0:05:23]} 23. Qd4+ {[%emt 0:00:33]} f6 {[%emt 0:00:07]} 24. h4 {[%emt 0:02:02]} Qg3 {[%emt 0:00:23]} 25. Rf1 {[%emt 0:01:18]} Rhf8 {[%emt 0:00:46]} 26. Rf3 {[%emt 0:01:02]} Qd6 {[%emt 0:00:14]} 27. Rcf1 {[%emt 0:03:00]} Rce8 {[%emt 0:00:16]} 28. Bd3 {[%emt 0:01:04]} Re5 {[%emt 0:00:37]} 29. Ne4 {[%emt 0:05:40]} 1-0

[Event "Irish New Year Events-IM2 2020"]
[Site "Dublin"]
[Date "2020.01.04"]
[Round "5.15"]
[White "Haque, Muhtarim-Ul"]
[Black "Froewis, Georg"]
[Result "0-1"]
[ECO "D35"]
[WhiteElo "2045"]
[BlackElo "2470"]
[Annotator "ChessBase"]
[PlyCount "62"]
[EventDate "2020.01.02"]
[EventType "tourn"]
[EventCountry "IRL"]
[SourceTitle "playchess.com"]
[Source "ChessBase"]
[SourceQuality "1"]
[TimeControl "5400+30"]

1. d4 {[%emt 0:00:00]} d5 {[%emt 0:00:00]} 2. c4 {[%emt 0:00:00]} e6 {[%emt 0:00:00]} 3. Nc3 {[%emt 0:00:00]} c6 {[%emt 0:00:12]} 4. cxd5 {[%emt 0:00:00]} exd5 {[%emt 0:00:04]} 5. Nf3 {[%emt 0:00:24]} Bf5 {[%emt 0:00:05]} 6. Bf4 {[%emt 0:00:44]} Bd6 {[%emt 0:00:05]} 7. Bxd6 {[%emt 0:01:01]} Qxd6 {[%emt 0:00:02]} 8. e3 {[%emt 0:01:34]} Nf6 {[%emt 0:00:02]} 9. Be2 {[%emt 0:00:12]} Nbd7 {[%emt 0:00:08]} 10. O-O {[%emt 0:00:21]} O-O {[%emt 0:00:06]} 11. Nh4 {[%emt 0:00:47]} Bg6 {[%emt 0:00:21]} 12. Nxg6 {[%emt 0:00:41]} hxg6 {[%emt 0:00:02]} 13. Rb1 {[%emt 0:00:47]} a5 {[%emt 0:00:04]} 14. Qc2 {[%emt 0:03:47]} Rfe8 {[%emt 0:00:05]} 15. Bf3 {[%emt 0:07:39]} g5 {[%emt 0:05:54]} 16. Qf5 {[%emt 0:02:57]} Nh7 {[%emt 0:00:17]} 17. e4 {[%emt 0:02:23]} g6 {[%emt 0:14:36]} 18. Qh3 {[%emt 0:00:55]} dxe4 {[%emt 0:00:07]} 19. Nxe4 {[%emt 0:00:18]} Qe7 {[%emt 0:01:13]} 20. Nc3 {[%emt 0:02:06]} Ndf6 {[%emt 0:09:11]} 21. d5 {[%emt 0:05:32]} g4 {[%emt 0:00:06]} 22. Bxg4 {[%emt 0:00:33]} cxd5 {[%emt 0:00:05]} 23. Bd1 {[%emt 0:00:50]} d4 {[%emt 0:04:23]} 24. Nb5 {[%emt 0:00:46]} Rad8 {[%emt 0:00:42]} 25. Bb3 {[%emt 0:00:42]} Qe4 {[%emt 0:21:27]} 26. Qg3 {[%emt 0:04:44]} Re5 {[%emt 0:03:08]} 27. a4 {[%emt 0:06:55]} Nh5 {[%emt 0:01:48]} 28. Qf3 {[%emt 0:03:03]} Qxf3 {[%emt 0:00:06]} 29. gxf3 {[%emt 0:00:01]} Ng5 {[%emt 0:00:15]} 30. Kg2 {[%emt 0:02:26]} Nf4+ {[%emt 0:00:13]} 31. Kh1 {[%emt 0:01:18]} Nxf3 {[%emt 0:00:46]} 0-1

[Event "Irish New Year Events-IM2 2020"]
[Site "Dublin"]
[Date "2020.01.05"]
[Round "6.12"]
[White "Alienkin, Aleksander"]
[Black "Haque, Muhtarim-Ul"]
[Result "1/2-1/2"]
[ECO "D40"]
[WhiteElo "2382"]
[BlackElo "2045"]
[Annotator "ChessBase"]
[PlyCount "76"]
[EventDate "2020.01.02"]
[EventType "tourn"]
[EventCountry "IRL"]
[SourceTitle "playchess.com"]
[Source "ChessBase"]
[SourceQuality "1"]
[TimeControl "40/5400+30:1800+30"]

1. e4 {[%emt 0:05:21]} e6 {[%emt 0:00:00]} 2. d4 {[%emt 0:00:51]} d5 {[%emt 0:00:00]} 3. Bd3 {[%emt 0:00:17]} c5 {[%emt 0:01:31]} 4. c3 {[%emt 0:09:00]} cxd4 {[%emt 0:01:48]} 5. cxd4 {[%emt 0:02:17]} dxe4 {[%emt 0:00:15]} 6. Bxe4 {[%emt 0:00:04]} Nf6 {[%emt 0:00:18]} 7. Bd3 {[%emt 0:01:47]} Nc6 {[%emt 0:02:08]} 8. Nf3 {[%emt 0:00:26]} Be7 {[%emt 0:03:20]} 9. O-O {[%emt 0:03:01]} O-O {[%emt 0:00:12]} 10. Nc3 {[%emt 0:00:17]} b6 {[%emt 0:01:04]} 11. a3 {[%emt 0:03:25]} Bb7 {[%emt 0:01:15]} 12. Re1 {[%emt 0:01:41]} a6 {[%emt 0:06:53]} 13. Be3 {[%emt 0:13:35]} Qd6 {[%emt 0:03:24]} 14. d5 {[%emt 0:10:57]} Nd8 {[%emt 0:05:47]} 15. dxe6 {[%emt 0:09:23]} Nxe6 {[%emt 0:00:43]} 16. Bc4 {[%emt 0:03:39]} Qc6 {[%emt 0:06:33]} 17. Bxe6 {[%emt 0:04:25]} fxe6 {[%emt 0:00:08]} 18. Rc1 {[%emt 0:02:15]} Ng4 {[%emt 0:09:23]} 19. Ne2 {[%emt 0:10:28]} Nxe3 {[%emt 0:06:34]} 20. fxe3 {[%emt 0:00:12]} Bc5 {[%emt 0:09:09]} 21. Ned4 {[%emt 0:00:59]} Qe4 {[%emt 0:00:38]} 22. b4 {[%emt 0:03:32]} Bd6 {[%emt 0:01:51]} 23. Qb3 {[%emt 0:01:28]} Bd5 {[%emt 0:02:55]} 24. Qc2 {[%emt 0:00:26]} Qg4 {[%emt 0:00:50]} 25. e4 {[%emt 0:00:30]} Bb7 {[%emt 0:00:31]} 26. h3 {[%emt 0:01:00]} Qg3 {[%emt 0:03:10]} 27. Qf2 {[%emt 0:01:59]} Qg6 {[%emt 0:06:24]} 28. e5 {[%emt 0:00:37]} Bxf3 {[%emt 0:00:42]} 29. Nxf3 {[%emt 0:00:24]} Bb8 {[%emt 0:00:11]} 30. Red1 {[%emt 0:01:21]} Ra7 {[%emt 0:02:31]} 31. Qc2 {[%emt 0:02:17]} Qh6 {[%emt 0:05:28]} 32. Qd2 {[%emt 0:01:11]} Qg6 {[%emt 0:01:40]} 33. Qd3 {[%emt 0:00:20]} Qg3 {[%emt 0:00:53]} 34. Rc4 {[%emt 0:01:01]} h5 {[%emt 0:18:51]} 35. Re4 {[%emt 0:01:39]} Raf7 {[%emt 0:00:00]} 36. Rf1 {[%emt 0:00:27]} b5 {[%emt 0:00:00]} 37. Kh1 {[%emt 0:00:30]} Bxe5 {[%emt 0:01:30]} 38. Rxe5 {[%emt 0:05:58]} Rxf3 {[%emt 0:00:30]} 1/2-1/2

[Event "Irish New Year Events-IM2 2020"]
[Site "Dublin"]
[Date "2020.01.05"]
[Round "6.13"]
[White "Han, Yichen"]
[Black "Melaugh, Gavin"]
[Result "1-0"]
[ECO "A80"]
[WhiteElo "2257"]
[BlackElo "2076"]
[Annotator "NA"]
[PlyCount "39"]
[EventDate "2020.01.02"]
[EventType "tourn"]
[EventCountry "IRL"]
[SourceTitle "playchess.com"]
[Source "ChessBase"]
[SourceQuality "1"]
[TimeControl "40/5400+30:1800+30"]

1. d4 {[%emt 0:00:00]} f5 {[%emt 0:00:38]} 2. Nf3 {[%emt 0:00:00]} e6 {[%emt 0:00:09]} 3. Bf4 {[%emt 0:00:00]} Nf6 {[%emt 0:00:06]} 4. e3 {[%emt 0:00:04]} b6 {[%emt 0:01:19]} 5. Nbd2 {[%emt 0:00:31]} Bb7 {[%emt 0:00:07]} 6. Bd3 {[%emt 0:00:07]} Be7 {[%emt 0:01:21]} 7. h3 {[%emt 0:00:09]} O-O {[%emt 0:00:05]} 8. c3 {[%emt 0:00:55]} Ne4 {[%emt 0:01:05]} 9. Rg1 {[%emt 0:02:02]} c5 {[%emt 0:11:36]} 10. g4 {[%emt 0:05:41]} d5 {[%emt 0:26:10]} 11. gxf5 {[%emt 0:09:23]} exf5 {[%emt 0:00:14]} 12. Ne5 {[%emt 0:00:45]} Nd7 {[%emt 0:12:21]} 13. Bxe4 {[%emt 0:00:36]} dxe4 {[%emt 0:03:49]} 14. Qb3+ {[%emt 0:00:13]} Kh8 {[%emt 0:00:22]} 15. Nf7+ {[%emt 0:00:14]} Rxf7 {[%emt 0:00:07]} 16. Qxf7 {[%emt 0:00:07]} Bf6 {[%emt 0:01:30]} 17. Nc4 {[%emt 0:00:41]} cxd4 {[%emt 0:02:54]} 18. exd4 {[%emt 0:02:25]} Nc5 {[%emt 0:10:14]} 19. dxc5 {[%emt 0:03:15]} Bd5 {[%emt 0:00:04]} 20. Nd6 {[%emt 0:01:10]} 1-0

[Event "Irish New Year Events-IM2 2020"]
[Site "Dublin"]
[Date "2020.01.05"]
[Round "6.14"]
[White "Daly, Colm"]
[Black "Kanyamarala, Trisha"]
[Result "0-1"]
[ECO "B67"]
[WhiteElo "2238"]
[BlackElo "2195"]
[Annotator "ChessBase"]
[PlyCount "84"]
[EventDate "2020.01.02"]
[EventType "tourn"]
[EventCountry "IRL"]
[SourceTitle "playchess.com"]
[Source "ChessBase"]
[SourceQuality "1"]
[TimeControl "40/5400+30:1800+30"]

1. e4 {[%emt 0:00:00]} c5 {[%emt 0:00:00]} 2. Nf3 {[%emt 0:00:00]} Nc6 {[%emt 0:00:01]} 3. d4 {[%emt 0:00:09]} cxd4 {[%emt 0:00:19]} 4. Nxd4 {[%emt 0:00:03]} Nf6 {[%emt 0:00:27]} 5. Nc3 {[%emt 0:00:02]} d6 {[%emt 0:00:15]} 6. Bg5 {[%emt 0:00:02]} e6 {[%emt 0:00:25]} 7. Qd2 {[%emt 0:00:03]} a6 {[%emt 0:00:07]} 8. O-O-O {[%emt 0:00:09]} Bd7 {[%emt 0:00:20]} 9. f4 {[%emt 0:00:06]} b5 {[%emt 0:00:47]} 10. Bxf6 {[%emt 0:00:09]} gxf6 {[%emt 0:08:06]} 11. Kb1 {[%emt 0:03:04]} Qb6 {[%emt 0:11:10]} 12. Nf3 {[%emt 0:03:56]} h5 {[%emt 0:04:29]} 13. e5 {[%emt 0:06:23]} fxe5 {[%emt 0:14:04]} 14. fxe5 {[%emt 0:04:01]} d5 {[%emt 0:02:16]} 15. Ne4 {[%emt 0:00:18]} O-O-O {[%emt 0:02:08]} 16. Neg5 {[%emt 0:03:44]} Be8 {[%emt 0:03:25]} 17. Bd3 {[%emt 0:01:04]} Be7 {[%emt 0:03:06]} 18. h4 {[%emt 0:01:53]} Na5 {[%emt 0:07:50]} 19. Qf4 {[%emt 0:03:44]} Nc4 {[%emt 0:02:02]} 20. Rhe1 {[%emt 0:03:26]} Rd7 {[%emt 0:02:05]} 21. Nh7 {[%emt 0:03:55]} Rc7 {[%emt 0:03:06]} 22. Nf6 {[%emt 0:03:05]} Bc6 {[%emt 0:02:59]} 23. Ng5 {[%emt 0:02:40]} Bc5 {[%emt 0:00:56]} 24. Bxc4 {[%emt 0:02:00]} bxc4 {[%emt 0:00:16]} 25. c3 {[%emt 0:00:16]} Rb7 {[%emt 0:02:20]} 26. Re2 {[%emt 0:01:23]} Ba4 {[%emt 0:01:52]} 27. Rdd2 {[%emt 0:04:32]} Qa5 {[%emt 0:03:20]} 28. Nxd5 {[%emt 0:28:39]} exd5 {[%emt 0:00:37]} 29. Rxd5 {[%emt 0:00:21]} Bc6 {[%emt 0:06:43]} 30. Rdd2 {[%emt 0:02:52]} Qc7 {[%emt 0:03:13]} 31. Qf5+ {[%emt 0:01:22]} Bd7 {[%emt 0:01:47]} 32. Qf6 {[%emt 0:02:00]} Rf8 {[%emt 0:02:08]} 33. Qxa6 {[%emt 0:00:40]} Kb8 {[%emt 0:04:58]} 34. Qf6 {[%emt 0:05:41]} Rb6 {[%emt 0:00:29]} 35. Qf4 {[%emt 0:03:15]} f6 {[%emt 0:01:15]} 36. Nf3 {[%emt 0:03:37]} fxe5 {[%emt 0:00:38]} 37. Qxe5 {[%emt 0:00:12]} Bd6 {[%emt 0:02:16]} 38. Qxh5 {[%emt 0:01:02]} Bf5+ {[%emt 0:02:37]} 39. Ka1 {[%emt 0:00:18]} Ra6 {[%emt 0:02:29]} 40. a3 {[%emt 0:02:23]} Qb6 {[%emt 0:00:51]} 41. b4 {[%emt 0:37:23]} cxb3 {[%emt 0:30:35]} 42. Re8+ {[%emt 0:00:26]} Kb7 {[%emt 0:00:31]} 0-1